[Event "LEM Niedersachsen-B-Open 2025"]
[Site "Verden"]
[Date "2025.01.05"]
[Round "7.14"]
[White "Elbert, Andre"]
[Black "Baum, Ferdinand"]
[Result "1-0"]
[ECO "C30"]
[WhiteElo "1817"]
[BlackElo "1626"]
[Annotator "NA RC"]
[PlyCount "105"]
[EventDate "2024.12.27"]
[EventType "swiss"]
[EventCountry "GER"]
[SourceTitle "playchess.com"]
[Source "ChessBase"]
[SourceQuality "1"]
[TimeControl "40/5400+30:1800+30"]

1. e4 {[%emt 0:00:08]} e5 {[%emt 0:00:19]} 2. f4 {[%emt 0:01:03]} d6 {[%emt 0:04:17]} 3. Nf3 {[%emt 0:00:27]} Nc6 {[%emt 0:04:14]} 4. Bc4 {[%emt 0:00:34]} Nf6 {[%emt 0:01:54]} 5. Nc3 {[%emt 0:02:59]} Bg4 {[%emt 0:01:15]} 6. Bb5 {[%emt 0:06:16]} a6 {[%emt 0:07:15]} 7. Bxc6+ {[%emt 0:00:21]} bxc6 {[%emt 0:00:07]} 8. h3 {[%emt 0:01:45]} Bxf3 {[%emt 0:03:04]} 9. Qxf3 {[%emt 0:00:10]} exf4 {[%emt 0:00:32]} 10. d4 {[%emt 0:02:26]} d5 {[%emt 0:05:15]} 11. Bxf4 {[%emt 0:11:27]} Bb4 {[%emt 1:07:48]} 12. O-O-O {[%emt 0:04:20]} dxe4 {[%emt 0:00:00]} 13. Nxe4 {[%emt 0:00:43]} Nd5 {[%emt 0:00:00] [#]} 14. c3 {[%emt 0:21:28]} (14. Qg3 $142 $1 {[%cal Rg3g7]} Qe7 15. Qxg7) 14... Nxf4 {[%emt 0:00:00]} 15. Qxf4 {[%emt 0:00:45]} Be7 {[%emt 0:00:00]} 16. g4 {[%emt 0:06:31]} h6 $16 {[%emt 0:00:00]} (16... O-O $14) 17. Kc2 {[%emt 0:04:25]} O-O {[%emt 0:00:00]} 18. Rhg1 {[%emt 0:06:22]} Bg5 {[%emt 0:00:00]} 19. Nxg5 {[%emt 0:01:29]} Qxg5 {[%emt 0:00:00]} 20. Qxg5 {[%emt 0:01:31]} hxg5 {[%emt 0:00:00]} 21. Rde1 {[%emt 0:00:50]} Rfe8 {[%emt 0:00:00]} 22. Kd3 {[%emt 0:03:04]} f6 {[%emt 0:00:00]} 23. b4 {[%emt 0:06:29]} Kf7 {[%emt 0:00:00]} 24. Kc4 {[%emt 0:04:16]} Rad8 {[%emt 0:00:00]} 25. Kc5 {[%emt 0:01:43]} Rd6 {[%emt 0:00:00]} 26. Rxe8 {[%emt 0:00:45]} Kxe8 {[%emt 0:00:00]} 27. Re1+ {[%emt 0:00:13]} Kd7 {[%emt 0:00:00]} 28. a4 {[%emt 0:01:13]} g6 {[%emt 0:00:00]} 29. c4 {[%emt 0:02:20]} f5 {[%emt 0:00:00]} 30. gxf5 {[%emt 0:06:38]} gxf5 {[%emt 0:00:00]} 31. Re5 {[%emt 0:00:08]} Rf6 {[%emt 0:00:00]} 32. b5 {[%emt 0:00:36]} cxb5 {[%emt 0:00:00]} 33. cxb5 {[%emt 0:00:16]} axb5 {[%emt 0:00:00]} 34. Kxb5 {[%emt 0:00:13]} g4 {[%emt 0:00:00]} 35. hxg4 {[%emt 0:00:13]} fxg4 {[%emt 0:00:00]} 36. Rg5 {[%emt 0:00:10]} Rf4 {[%emt 0:00:00]} 37. Kc5 {[%emt 0:00:25]} Ke6 {[%emt 0:00:00]} 38. a5 {[%emt 0:01:43]} Rf5+ {[%emt 0:00:00]} 39. d5+ {[%emt 0:01:02]} Kf6 {[%emt 0:00:00]} 40. Rxg4 {[%emt 0:00:08]} Ke5 {[%emt 0:00:00]} 41. Rg1 {[%emt 0:31:55]} Rf2 {[%emt 0:13:49]} 42. Re1+ {[%emt 0:00:00]} Kf6 {[%emt 0:00:00]} 43. Ra1 {[%emt 0:00:00]} Rc2+ {[%emt 0:00:00]} 44. Kb4 {[%emt 0:00:00]} Rb2+ {[%emt 0:00:00]} 45. Kc3 {[%emt 0:00:00]} Rb7 {[%emt 0:00:00]} 46. Kd4 {[%emt 0:00:00]} Ke7 {[%emt 0:00:00]} 47. Kc5 {[%emt 0:00:00]} Kd7 {[%emt 0:00:00]} 48. a6 {[%emt 0:00:00]} Ra7 {[%emt 0:00:00]} 49. Ra2 {[%emt 0:00:00]} Kc8 {[%emt 0:00:00]} 50. Kc6 {[%emt 0:00:00]} Kd8 {[%emt 0:00:00]} 51. d6 {[%emt 0:00:00]} Kc8 {[%emt 0:00:00]} 52. d7+ {[%emt 0:00:00]} Kd8 {[%emt 0:00:00]} 53. Ra3 {[%emt 0:00:00]} 1-0

[Event "LEM Niedersachsen-B-Open 2025"]
[Site "Verden"]
[Date "2025.01.05"]
[Round "7.15"]
[White "Fels, Mattis"]
[Black "Rohde, Bjoern"]
[Result "0-1"]
[ECO "D00"]
[WhiteElo "1742"]
[BlackElo "1939"]
[Annotator "NA RC"]
[PlyCount "86"]
[EventDate "2024.12.27"]
[EventType "swiss"]
[EventCountry "GER"]
[SourceTitle "playchess.com"]
[Source "ChessBase"]
[SourceQuality "1"]
[TimeControl "40/5400+30:1800+30"]

1. d4 {[%emt 0:00:01]} d5 {[%emt 0:00:12]} 2. Nc3 {[%emt 0:00:04]} e6 {[%emt 0:00:38]} 3. Bf4 {[%emt 0:00:05]} c5 {[%emt 0:00:06]} 4. e3 {[%emt 0:00:08]} Qb6 {[%emt 0:01:12]} 5. Nb5 {[%emt 0:02:33]} Na6 {[%emt 0:00:28]} 6. Nf3 {[%emt 0:00:38] D00: 1 d4 d5: Unusual lines.} Bd7 {[%emt 0:01:22]} 7. a4 {[%emt 0:00:40]} c4 {[%emt 0:00:44]} 8. e4 {[%emt 0:15:23]} Bxb5 {[%emt 0:05:29]} 9. axb5 {[%emt 0:00:05]} Qxb5 {[%emt 0:00:52]} 10. exd5 {[%emt 0:00:14]} Qxd5 {[%emt 0:03:51]} 11. Be2 {[%emt 0:00:34]} Bb4+ {[%emt 0:01:40]} 12. c3 {[%emt 0:00:21]} Bd6 {[%emt 0:00:19]} 13. Qa4+ {[%emt 0:00:45]} b5 {[%emt 0:01:58]} 14. Qxa6 {[%emt 0:00:36]} Bxf4 {[%emt 0:00:02]} 15. O-O {[%emt 0:01:48]} Qd7 $2 {[%emt 0:08:48] [#]} (15... Rb8 $16) 16. Rfd1 $2 {[%emt 0:01:37]} ({White must play} 16. g3 $1 $18 {[%cal Rg3f4]} Bc7 17. Ne5 Bxe5 18. Bf3 (18. dxe5 Ne7 $14)) 16... Rb8 {[%emt 0:05:32]} 17. Ne5 {[%emt 0:04:40]} Bxe5 {[%emt 0:19:18]} 18. dxe5 {[%emt 0:00:11]} Qb7 $2 {[%emt 0:02:21]} (18... Qc7 $16) 19. Qxa7 {[%emt 0:10:28]} Qxa7 $16 {[%emt 0:02:17]} 20. Rxa7 {[%emt 0:00:06]} Nh6 {[%emt 0:01:09]} 21. Rdd7 {[%emt 0:02:37]} O-O {[%emt 0:00:06]} 22. Bf3 {[%emt 0:03:31]} b4 {[%emt 0:43:06]} 23. Rdb7 {[%emt 0:03:44]} bxc3 {[%emt 0:00:00]} 24. bxc3 {[%emt 0:00:14]} g6 {[%emt 0:00:00]} 25. Rxb8 {[%emt 0:06:51]} Rxb8 {[%emt 0:00:00]} 26. Ra8 {[%emt 0:00:06]} Rxa8 {[%emt 0:00:00]} 27. Bxa8 {[%emt 0:00:09]} Ng4 {[%emt 0:00:00]} 28. f4 {[%emt 0:00:30]} Ne3 {[%emt 0:00:00]} 29. Bf3 {[%emt 0:00:11]} Nd5 {[%emt 0:00:00]} 30. Bxd5 {[%emt 0:02:24]} exd5 {[%emt 0:00:00]} 31. Kf2 {[%emt 0:01:31]} Kf8 {[%emt 0:00:00]} 32. Ke3 {[%emt 0:00:23]} Ke7 {[%emt 0:00:00]} 33. Kd4 {[%emt 0:00:44]} Ke6 {[%emt 0:00:00]} 34. g4 {[%emt 0:00:18]} h5 {[%emt 0:00:00]} 35. h3 {[%emt 0:00:09]} h4 {[%emt 0:00:00]} 36. Kc5 {[%emt 0:00:36]} g5 {[%emt 0:00:00]} 37. f5+ {[%emt 0:22:23]} Kxe5 {[%emt 0:00:00]} 38. f6 {[%emt 0:00:11]} Ke6 {[%emt 0:00:00]} 39. Kd4 {[%emt 0:00:49]} Kd6 {[%emt 0:00:00]} 40. Ke3 {[%emt 0:00:09]} Ke5 {[%emt 0:00:00]} 41. Ke2 {[%emt 0:30:55]} Ke4 {[%emt 0:12:13]} 42. Kf2 {[%emt 0:00:33]} Kd3 {[%emt 0:00:59]} 43. Ke1 {[%emt 0:00:14]} Kxc3 {[%emt 0:00:15]} 0-1

[Event "LEM Niedersachsen-B-Open 2025"]
[Site "Verden"]
[Date "2025.01.05"]
[Round "7.16"]
[White "Brockmeyer, Tobias"]
[Black "Grabowski, Petra"]
[Result "1/2-1/2"]
[ECO "A14"]
[WhiteElo "1942"]
[BlackElo "1766"]
[Annotator "NA RC"]
[PlyCount "30"]
[EventDate "2024.12.27"]
[EventType "swiss"]
[EventCountry "GER"]
[SourceTitle "playchess.com"]
[Source "ChessBase"]
[SourceQuality "1"]
[TimeControl "40/5400+30:1800+30"]

1. Nf3 {[%emt 0:00:02]} Nf6 {[%emt 0:00:07]} 2. g3 {[%emt 0:00:09]} e6 {[%emt 0:00:10]} 3. Bg2 {[%emt 0:00:06]} d5 {[%emt 0:00:06]} 4. c4 {[%emt 0:00:04]} Be7 {[%emt 0:00:04]} 5. b3 {[%emt 0:00:08]} c5 {[%emt 0:01:21]} 6. O-O {[%emt 0:00:07]} b6 {[%emt 0:03:41]} 7. Bb2 {[%emt 0:00:06]} Bb7 {[%emt 0:00:53]} 8. e3 {[%emt 0:00:18]} O-O {[%emt 1:28:08]} 9. Nc3 {[%emt 0:02:16]} Nbd7 {[%emt 0:00:00]} 10. Nh4 {[%emt 0:01:24]} Ne4 {[%emt 0:00:00]} 11. Nf3 {[%emt 0:09:05]} Bf6 {[%emt 0:00:00]} 12. Qc2 {[%emt 0:00:26]} Nxc3 {[%emt 0:00:00]} 13. Bxc3 {[%emt 0:00:05]} dxc4 {[%emt 0:00:00]} 14. bxc4 {[%emt 0:00:06]} Bxc3 {[%emt 0:00:00]} 15. Qxc3 {[%emt 0:04:50]} Qf6 {[%emt 0:03:30]} 1/2-1/2

[Event "LEM Niedersachsen-B-Open 2025"]
[Site "Verden"]
[Date "2025.01.05"]
[Round "7.17"]
[White "Hapke, Thorsten"]
[Black "Buetow, Ingo"]
[Result "1/2-1/2"]
[ECO "A29"]
[WhiteElo "1727"]
[BlackElo "1814"]
[Annotator "NA RC"]
[PlyCount "74"]
[EventDate "2024.12.27"]
[EventType "swiss"]
[EventCountry "GER"]
[SourceTitle "playchess.com"]
[Source "ChessBase"]
[SourceQuality "1"]
[TimeControl "40/5400+30:1800+30"]

1. c4 {[%emt 0:00:01]} e5 {[%emt 0:00:14]} 2. g3 {[%emt 0:00:04]} Nf6 {[%emt 0:00:11]} 3. Bg2 {[%emt 0:00:04]} Nc6 {[%emt 0:00:15]} 4. Nc3 {[%emt 0:00:05]} Bc5 {[%emt 0:00:12]} 5. Nf3 {[%emt 0:00:35]} d6 {[%emt 0:00:11]} 6. O-O {[%emt 0:00:11]} O-O {[%emt 0:00:19] 6...a6 injects fresh life into this line.} 7. a3 {[%emt 0:00:12]} Ne7 $146 {[%emt 0:00:29] A29: English Opening: Four Knights Variation with 4 g3.} ({Predecessor:} 7... a6 8. e3 Bf5 9. d4 Ba7 10. h3 h6 11. b4 Re8 12. g4 Bh7 13. dxe5 dxe5 14. c5 e4 15. Nd4 Nxd4 16. exd4 {½-½ Savchenko,B (2550)-Afanasiev,N (2569) RUS-ch Rapid 2022 (9)}) 8. b4 {[%emt 0:00:43]} Bb6 {[%emt 0:00:07]} 9. e3 {[%emt 0:01:49]} c6 {[%emt 0:01:13]} 10. d3 {[%emt 0:02:06]} Ng6 {[%emt 0:00:27]} 11. a4 {[%emt 0:03:15]} a6 {[%emt 0:00:38]} 12. Bb2 {[%emt 0:01:09]} Bg4 {[%emt 0:02:59]} 13. h3 {[%emt 0:00:15]} Bd7 {[%emt 0:00:28]} 14. Qb3 {[%emt 0:00:47]} Re8 {[%emt 0:02:11]} 15. b5 {[%emt 0:09:20]} Ba5 {[%emt 0:01:19]} 16. Qa3 {[%emt 0:07:27]} axb5 {[%emt 0:01:36]} 17. cxb5 {[%emt 0:03:01]} Bxc3 {[%emt 0:00:44]} 18. Qxc3 {[%emt 0:00:02]} cxb5 {[%emt 0:00:58]} 19. axb5 {[%emt 0:01:56]} Bxb5 {[%emt 0:00:25]} 20. Nd2 {[%emt 0:02:02]} Ba6 {[%emt 0:01:54]} 21. Rfd1 {[%emt 0:11:01]} Rc8 {[%emt 0:01:58]} 22. Qb3 {[%emt 0:03:17]} Qd7 {[%emt 0:00:36]} 23. Nc4 {[%emt 0:02:37]} Qe6 {[%emt 0:05:02]} 24. Qb6 {[%emt 0:03:05]} d5 {[%emt 0:03:10]} 25. Qxe6 {[%emt 0:03:28]} Rxe6 {[%emt 0:00:09]} 26. Na3 {[%emt 0:00:33]} Rb6 {[%emt 0:01:08]} 27. Rab1 {[%emt 0:02:11]} Rb3 {[%emt 0:00:34]} 28. Bf1 {[%emt 0:00:26]} Kf8 {[%emt 0:01:20]} 29. f4 $17 {[%emt 0:03:00]} (29. Bxe5 $1 $11 Rxb1 30. Bd6+ Kg8 31. Nxb1 (31. Rxb1 Rc6 $11)) 29... Nd7 {[%emt 0:03:29]} 30. e4 {[%emt 0:01:40]} exf4 {[%emt 0:00:39]} 31. Bxg7+ {[%emt 0:00:18]} Kxg7 {[%emt 0:00:31]} 32. Rxb3 {[%emt 0:00:01]} fxg3 {[%emt 0:00:31]} 33. Kg2 {[%emt 0:01:02]} h5 {[%emt 0:03:03]} 34. Kxg3 {[%emt 0:00:59]} h4+ {[%emt 0:00:13]} 35. Kh2 {[%emt 0:01:48]} Nf4 {[%emt 0:00:38]} 36. exd5 {[%emt 0:01:33]} Nxd5 {[%emt 0:00:38]} 37. Nc4 {[%emt 0:01:40]} b5 {[%emt 0:01:36]} 1/2-1/2

[Event "LEM Niedersachsen-B-Open 2025"]
[Site "Verden"]
[Date "2025.01.05"]
[Round "7.18"]
[White "Stelter, Finja"]
[Black "Wernke-Schmiesing, Sebastian"]
[Result "0-1"]
[ECO "B12"]
[WhiteElo "1711"]
[BlackElo "1806"]
[Annotator "NA RC"]
[PlyCount "82"]
[EventDate "2024.12.27"]
[EventType "swiss"]
[EventCountry "GER"]
[SourceTitle "playchess.com"]
[Source "ChessBase"]
[SourceQuality "1"]
[TimeControl "40/5400+30:1800+30"]

1. e4 {[%emt 0:00:04]} c6 {[%emt 0:00:08]} 2. d4 {[%emt 0:00:35]} d5 {[%emt 0:00:04]} 3. e5 {[%emt 0:00:20]} c5 {[%emt 0:00:05]} 4. dxc5 {[%emt 0:00:33]} e6 {[%emt 0:00:05]} 5. a3 {[%emt 0:00:48]} Bxc5 {[%emt 0:00:07]} 6. b4 {[%emt 0:00:43]} Bb6 {[%emt 0:00:08]} 7. Nf3 {[%emt 0:01:13]} Nd7 {[%emt 0:00:54]} 8. Bb2 {[%emt 0:00:48]} Nh6 {[%emt 0:02:53]} 9. Bb5 {[%emt 0:05:33]} Bxf2+ {[%emt 0:03:03]} 10. Kxf2 {[%emt 0:06:35]} Qb6+ {[%emt 0:00:10]} 11. Nd4 {[%emt 0:00:21]} Nf5 {[%emt 0:04:36]} 12. Re1 {[%emt 0:07:02]} a5 {[%emt 0:05:27]} 13. Kf1 {[%emt 0:13:40]} O-O {[%emt 0:04:25]} 14. bxa5 {[%emt 0:08:01]} Rxa5 {[%emt 0:02:11]} 15. a4 {[%emt 0:01:14]} Nh4 {[%emt 0:27:55]} 16. Nb3 {[%emt 0:07:02]} Ra8 {[%emt 0:02:09]} 17. Bd4 {[%emt 0:03:44]} Qc7 {[%emt 0:03:46]} 18. N1d2 {[%emt 0:05:10]} f6 {[%emt 0:02:24]} 19. Qg4 {[%emt 0:16:53]} fxe5+ {[%emt 0:03:08]} 20. Kg1 {[%emt 0:00:55]} Nf5 {[%emt 0:07:07]} 21. Bxd7 {[%emt 0:04:55]} Nxd4 {[%emt 0:02:23]} 22. Nxd4 {[%emt 0:01:06]} Bxd7 {[%emt 0:02:52]} 23. Nxe6 {[%emt 0:00:57]} Qb6+ {[%emt 0:00:19]} 24. Kh1 {[%emt 0:01:40]} Bxe6 {[%emt 0:01:16]} 25. Qh4 {[%emt 0:02:37]} e4 {[%emt 0:04:01]} 26. Ra3 {[%emt 0:00:42]} Qb4 {[%emt 0:04:59]} 27. Nb1 {[%emt 0:02:16]} Qc4 {[%emt 0:05:49]} 28. Kg1 {[%emt 0:01:01]} Qxc2 {[%emt 0:02:18]} 29. Rc3 {[%emt 0:02:30]} Qxa4 {[%emt 0:01:22]} 30. Rc7 {[%emt 0:01:46]} Qd4+ {[%emt 0:00:56]} 31. Kh1 {[%emt 0:00:18]} Qf6 {[%emt 0:02:34]} 32. Qxf6 {[%emt 0:00:46]} Rxf6 {[%emt 0:00:09]} 33. Rxb7 {[%emt 0:00:45]} Raf8 {[%emt 0:00:17]} 34. Kg1 {[%emt 0:00:51]} e3 {[%emt 0:01:53]} 35. Nc3 {[%emt 0:01:25]} d4 {[%emt 0:00:49]} 36. Ne4 {[%emt 0:00:28]} Rf4 {[%emt 0:00:39]} 37. Nc5 {[%emt 0:01:17]} Bc4 {[%emt 0:01:04]} 38. Rbb1 {[%emt 0:00:54]} Rf2 {[%emt 0:01:26]} 39. Ne4 {[%emt 0:00:31]} Bd5 {[%emt 0:01:50]} 40. Ng3 {[%emt 0:00:56]} Rxg2+ {[%emt 0:00:12]} 41. Kh1 {[%emt 0:30:05]} Rxg3# {[%emt 0:30:08]} 0-1

[Event "LEM Niedersachsen-B-Open 2025"]
[Site "Verden"]
[Date "2025.01.05"]
[Round "7.19"]
[White "Messow, Adrian"]
[Black "Leppert, Hans-Juergen"]
[Result "1-0"]
[ECO "C04"]
[WhiteElo "1686"]
[BlackElo "1794"]
[Annotator "NA RC"]
[PlyCount "36"]
[EventDate "2024.12.27"]
[EventType "swiss"]
[EventCountry "GER"]
[SourceTitle "playchess.com"]
[Source "ChessBase"]
[SourceQuality "1"]
[TimeControl "40/5400+30:1800+30"]

1. e4 {[%emt 0:00:03]} e6 {[%emt 0:00:08]} 2. d4 {[%emt 0:00:05]} d5 {[%emt 0:00:07]} 3. Nd2 {[%emt 0:00:13]} Nc6 {[%emt 0:00:10]} 4. Ngf3 {[%emt 0:00:31]} Nf6 {[%emt 0:00:16]} 5. e5 {[%emt 0:00:35]} Nd7 {[%emt 0:00:08]} 6. Bd3 {[%emt 0:00:35]} f6 {[%emt 0:00:41]} 7. Qe2 {[%emt 0:02:54]} fxe5 {[%emt 0:00:53]} 8. dxe5 {[%emt 0:00:07]} Be7 {[%emt 0:00:55]} 9. O-O {[%emt 0:00:17]} O-O {[%emt 0:01:15]} 10. c4 {[%emt 0:05:49]} Nb4 {[%emt 0:05:27]} 11. Bb1 {[%emt 0:01:15]} dxc4 {[%emt 0:04:23]} 12. Nxc4 {[%emt 0:01:21]} Nd5 {[%emt 0:00:21]} 13. Nd4 {[%emt 0:04:45]} N7b6 {[%emt 0:04:42]} 14. Qh5 {[%emt 0:04:24]} g6 {[%emt 0:00:26]} 15. Bxg6 {[%emt 0:00:08]} hxg6 {[%emt 0:00:09]} 16. Qxg6+ {[%emt 0:00:07]} Kh8 {[%emt 0:00:05]} 17. Bh6 {[%emt 0:21:56]} Rg8 {[%emt 0:01:38]} 18. Qh5 {[%emt 0:03:50]} Nxc4 {[%emt 1:17:46]} 1-0

[Event "LEM Niedersachsen-B-Open 2025"]
[Site "Verden"]
[Date "2025.01.05"]
[Round "7.20"]
[White "Gross, Daniel"]
[Black "Ramme, Georg"]
[Result "1/2-1/2"]
[ECO "A14"]
[WhiteElo "2178"]
[BlackElo "1741"]
[Annotator "TA"]
[PlyCount "46"]
[EventDate "2024.12.27"]
[EventType "swiss"]
[EventCountry "GER"]
[SourceTitle "playchess.com"]
[Source "ChessBase"]
[SourceQuality "1"]
[TimeControl "40/5400+30:1800+30"]

{[%evp 13,46,11,21,0,39,-7,0,-10,1,-33,-28,-38,-7,-17,-1,-18,0,0,14,-25,-13,-34,-8,-21,0,-25,0,-8,-17,-11,-9,-42,-31,-27,-18]} 1. c4 {[%emt 0:00:05]} Nf6 {[%emt 0:00:14]} 2. g3 {[%emt 0:00:06]} e6 {[%emt 0:02:02]} 3. Bg2 {[%emt 0:00:32]} d5 {[%emt 0:01:24]} 4. Nf3 {[%emt 0:01:21]} Be7 {[%emt 0:02:47]} 5. O-O {[%emt 0:01:41]} O-O {[%emt 0:01:27]} 6. b3 {[%emt 0:01:10]} Nbd7 {[%emt 0:01:29]} 7. Bb2 {[%emt 0:01:06]} c6 {[%emt 0:02:43]} 8. e3 {[%emt 0:02:13]} Qb6 {[%emt 0:05:12]} 9. Na3 {[%emt 0:06:55]} (9. Qc2 $14) 9... Rd8 {[%emt 0:02:31]} 10. cxd5 {[%emt 0:04:32]} exd5 {[%emt 0:01:05]} 11. d4 {[%emt 0:01:03]} Ne4 {[%emt 0:06:46]} 12. Nd2 {[%emt 0:08:26]} f5 {[%emt 0:01:21]} 13. f3 {[%emt 0:04:26]} Nxd2 {[%emt 0:02:59]} 14. Qxd2 {[%emt 0:00:04]} Nf6 {[%emt 0:04:30]} 15. Nc2 {[%emt 0:01:33]} Re8 {[%emt 0:02:28]} 16. Rae1 {[%emt 0:03:17]} Bd6 {[%emt 0:01:29]} 17. Kh1 {[%emt 0:02:41]} Qc7 {[%emt 0:02:06]} 18. Re2 {[%emt 0:03:29]} Bd7 {[%emt 0:01:51]} 19. Rfe1 {[%emt 0:03:57]} Re7 {[%emt 0:01:39]} 20. Ba3 {[%emt 0:02:54]} Bxa3 {[%emt 0:00:55]} 21. Nxa3 {[%emt 0:00:35][%cal Bc2a3,Ba3b1,Bb1c3][%mdl 32]} Rae8 {[%emt 0:00:41]} 22. Nb1 {[%emt 0:08:26]} Bc8 {[%emt 0:02:23]} 23. Nc3 {[%emt 0:05:58]} Qa5 {[%emt 0:51:58]} 1/2-1/2

[Event "LEM Niedersachsen-B-Open 2025"]
[Site "Verden"]
[Date "2025.01.05"]
[Round "7.21"]
[White "Frowein, Ernst Holger"]
[Black "Remizov, Kyryl"]
[Result "0-1"]
[ECO "B15"]
[WhiteElo "1853"]
[BlackElo "1690"]
[Annotator "NA RC"]
[PlyCount "102"]
[EventDate "2024.12.27"]
[EventType "swiss"]
[EventCountry "GER"]
[SourceTitle "playchess.com"]
[Source "ChessBase"]
[SourceQuality "1"]
[TimeControl "40/5400+30:1800+30"]

1. e4 {[%emt 0:00:03]} c6 {[%emt 0:00:05]} 2. d4 {[%emt 0:00:05]} d5 {[%emt 0:00:04]} 3. Nc3 {[%emt 0:00:09]} dxe4 {[%emt 0:00:04]} 4. Nxe4 {[%emt 0:00:09]} Nf6 {[%emt 0:00:16]} 5. Nxf6+ {[%emt 0:00:22]} exf6 {[%emt 0:00:06]} 6. c3 {[%emt 0:00:14]} Bd6 {[%emt 0:00:38]} 7. Nf3 {[%emt 0:00:58] B15: Caro-Kann: 3 Nc3: 3...g6 and 3...dxe4 4 Nxe4 Nf6 5 Nxf6+ exf6.} O-O {[%emt 0:02:03]} 8. Be2 {[%emt 0:00:06]} Bg4 {[%emt 0:07:42]} 9. O-O {[%emt 0:00:11]} Nd7 {[%emt 0:02:55]} 10. h3 {[%emt 0:00:07]} Be6 {[%emt 0:03:30]} 11. c4 {[%emt 0:04:43]} Qc7 {[%emt 0:01:33]} 12. d5 {[%emt 0:08:36]} Bf5 {[%emt 0:02:25]} 13. Bd3 {[%emt 0:01:52]} Bxd3 {[%emt 0:00:28]} 14. Qxd3 {[%emt 0:00:02]} cxd5 {[%emt 0:11:02]} 15. Rd1 {[%emt 0:07:00]} Ne5 {[%emt 0:03:42]} 16. Nxe5 {[%emt 0:04:58]} Bxe5 {[%emt 0:00:06]} 17. cxd5 {[%emt 0:03:51]} Rfd8 {[%emt 0:00:51]} 18. f4 {[%emt 0:02:37]} Bxf4 {[%emt 0:02:49]} 19. Bxf4 {[%emt 0:00:08]} Qxf4 {[%emt 0:00:05]} 20. Rac1 {[%emt 0:01:16]} Qd6 {[%emt 0:01:32]} 21. Qb5 {[%emt 0:03:35]} Qb6+ {[%emt 0:07:18]} 22. Qxb6 {[%emt 0:00:22]} axb6 {[%emt 0:00:02]} 23. d6 {[%emt 0:04:15]} Rd7 {[%emt 0:01:04]} 24. Rc7 {[%emt 0:10:57]} Rad8 $11 {[%emt 0:00:04]} 25. Rdc1 {[%emt 0:00:32]} g6 {[%emt 0:02:55]} 26. b4 {[%emt 0:02:36]} f5 {[%emt 0:05:18]} 27. Re1 {[%emt 0:00:08]} Rxc7 {[%emt 0:03:49]} 28. dxc7 {[%emt 0:00:12]} Rc8 {[%emt 0:00:04]} 29. Rc1 {[%emt 0:01:13]} Kf8 {[%emt 0:00:19]} 30. a4 {[%emt 0:03:27]} Ke7 {[%emt 0:00:39]} 31. a5 {[%emt 0:00:09]} bxa5 {[%emt 0:08:56]} 32. b5 {[%emt 0:00:13]} b6 {[%emt 0:00:05]} 33. Rc6 {[%emt 0:00:42]} a4 {[%emt 0:01:22]} 34. Rxb6 {[%emt 0:00:07]} Rxc7 {[%emt 0:00:06]} 35. Ra6 {[%emt 0:00:24]} Rb7 {[%emt 0:00:20]} 36. b6 {[%emt 0:02:48]} Kf6 {[%emt 0:00:28]} 37. Rxa4 {[%emt 0:11:01]} Rxb6 {[%emt 0:00:26]} 38. Rh4 {[%emt 0:01:16]} h5 {[%emt 0:00:47]} 39. Rc4 {[%emt 0:00:35]} g5 {[%emt 0:00:09]} 40. h4 {[%emt 0:01:00]} g4 {[%emt 0:01:36]} 41. g3 {[%emt 0:30:59]} Rb3 {[%emt 0:35:53]} 42. Kf2 {[%emt 0:00:18]} Rf3+ {[%emt 0:00:26]} 43. Kg2 {[%emt 0:00:18]} f4 {[%emt 0:04:28]} 44. Rc6+ {[%emt 0:02:46]} Kg7 {[%emt 0:00:49]} 45. gxf4 {[%emt 0:01:42]} Rxf4 {[%emt 0:00:23]} 46. Rc5 {[%emt 0:01:40]} Kh6 {[%emt 0:01:19]} 47. Rc3 {[%emt 0:00:45]} Kg6 {[%emt 0:00:45]} 48. Kg3 {[%emt 0:00:26]} Rf3+ {[%emt 0:00:39]} 49. Rxf3 {[%emt 0:00:10]} gxf3 {[%emt 0:00:03]} 50. Kxf3 {[%emt 0:00:10]} Kf5 {[%emt 0:00:04]} 51. Kg3 {[%emt 0:00:53]} Ke4 {[%emt 0:23:28]} 0-1

[Event "LEM Niedersachsen-B-Open 2025"]
[Site "Verden"]
[Date "2025.01.05"]
[Round "7.22"]
[White "Stammschroer, Manfred"]
[Black "Junge, Julia Marie"]
[Result "1/2-1/2"]
[ECO "C36"]
[WhiteElo "1834"]
[BlackElo "1663"]
[Annotator "NA RC"]
[PlyCount "29"]
[EventDate "2024.12.27"]
[EventType "swiss"]
[EventCountry "GER"]
[SourceTitle "playchess.com"]
[Source "ChessBase"]
[SourceQuality "1"]
[TimeControl "40/5400+30:1800+30"]

1. e4 {[%emt 0:00:05]} e5 {[%emt 0:00:19]} 2. f4 {[%emt 0:00:05]} d5 {[%emt 0:01:13]} 3. exd5 {[%emt 0:00:08]} exf4 {[%emt 0:00:13]} 4. Nf3 {[%emt 0:00:10]} Nf6 {[%emt 0:00:13]} 5. c4 {[%emt 0:00:22]} Bd6 {[%emt 0:01:30]} 6. Be2 {[%emt 0:00:13]} O-O {[%emt 0:01:54]} 7. O-O {[%emt 0:02:10]} c6 {[%emt 0:01:25]} 8. dxc6 {[%emt 0:02:29]} Nxc6 {[%emt 0:02:04]} 9. d4 {[%emt 0:00:06]} b6 {[%emt 0:01:51]} 10. Nc3 {[%emt 0:01:47]} a6 {[%emt 0:08:24]} 11. a3 {[%emt 0:02:05]} Ne7 {[%emt 0:01:33]} 12. Bd3 {[%emt 0:12:10]} Qc7 {[%emt 0:01:54]} 13. Ne2 {[%emt 0:07:22]} Nf5 {[%emt 0:02:07]} 14. Bxf5 {[%emt 0:02:28]} Bxf5 {[%emt 0:00:06]} 15. b3 {[%emt 0:00:07]} 1/2-1/2

[Event "LEM Niedersachsen-B-Open 2025"]
[Site "Verden"]
[Date "2025.01.05"]
[Round "7.23"]
[White "Kesselhut, Pascal"]
[Black "Tenninger, Joerg"]
[Result "1-0"]
[ECO "B40"]
[WhiteElo "1764"]
[BlackElo "1693"]
[Annotator "NA RC"]
[PlyCount "25"]
[EventDate "2024.12.27"]
[EventType "swiss"]
[EventCountry "GER"]
[SourceTitle "playchess.com"]
[Source "ChessBase"]
[SourceQuality "1"]
[TimeControl "40/5400+30:1800+30"]

1. e4 {[%emt 0:00:03]} e6 {[%emt 0:00:12]} 2. b3 {[%emt 0:00:11]} c5 {[%emt 0:00:24]} 3. Nf3 {[%emt 0:00:26]} Nc6 {[%emt 0:00:24]} 4. d4 {[%emt 0:01:36]} Qb6 {[%emt 0:02:00]} 5. d5 {[%emt 0:05:27]} Nd4 {[%emt 0:02:37]} 6. Bb2 {[%emt 0:00:32]} Nxf3+ {[%emt 0:04:54]} 7. Qxf3 {[%emt 0:00:07]} Ne7 {[%emt 0:02:08]} 8. Nd2 {[%emt 0:01:50]} d6 {[%emt 0:12:31]} 9. O-O-O {[%emt 0:01:14]} e5 {[%emt 0:01:33]} 10. Nc4 {[%emt 0:01:51]} Qc7 {[%emt 0:00:36]} 11. Be2 {[%emt 0:02:24]} a5 {[%emt 0:02:20]} 12. Nxe5 {[%emt 0:07:33]} Nxd5 {[%emt 0:03:09]} 13. Bb5+ {[%emt 0:00:56]} 1-0